[Event "Titled Tuesday Blitz November 08 Early 2022"]
[White "Hnydiuk, Aleksander"]
[Black "Martinez Alcantara, Jose Eduardo"]
[WhiteFideId "1109057"]
[BlackFideId "3805662"]
[WhiteElo "2374"]
[BlackElo "2705"]
[Result "0-1"]
[Round "01"]
[TimeControl "180+1"]
[Date "2022.11.08"]
[WhiteClock "0:00:02"]
[BlackClock "0:00:14"]

1. e4 {[%clk 0:02:59]}  e5 {[%clk 0:02:59]} 2. Nf3 {[%clk 0:02:58]}  Nc6 {[%clk 0:02:57]} 3. d4 {[%clk 0:02:59]}  exd4 {[%clk 0:02:57]} 4. Nxd4 {[%clk 0:02:59]}  Nf6 {[%clk 0:02:57]} 5. Nxc6 {[%clk 0:02:57]}  bxc6 {[%clk 0:02:58]} 6. Qe2 {[%clk 0:02:57]}  d6 {[%clk 0:02:52]} 7. Nc3 {[%clk 0:02:54]}  Be7 {[%clk 0:02:52]} 8. Bf4 {[%clk 0:02:53]}  Be6 {[%clk 0:02:48]} 9. O-O-O {[%clk 0:02:53]}  Nd7 {[%clk 0:02:48]} 10. Qh5 {[%clk 0:02:46]}  O-O {[%clk 0:02:45]} 11. Bd3 {[%clk 0:02:37]}  Rb8 {[%clk 0:02:43]} 12. e5 {[%clk 0:02:30]}  g6 {[%clk 0:02:42]} 13. Qe2 {[%clk 0:02:18]}  dxe5 {[%clk 0:02:42]} 14. Bxe5 {[%clk 0:02:18]}  Nxe5 {[%clk 0:02:42]} 15. Qxe5 {[%clk 0:02:19]}  Bf6 {[%clk 0:02:41]} 16. Qa5 {[%clk 0:02:19]}  Qd4 {[%clk 0:02:32]} 17. Rhe1 {[%clk 0:02:08]}  Qxf2 {[%clk 0:02:17]} 18. Rf1 {[%clk 0:01:38]}  Qe3+ {[%clk 0:02:16]} 19. Kb1 {[%clk 0:01:37]}  Qe5 {[%clk 0:02:16]} 20. Qxe5 {[%clk 0:01:28]}  Bxe5 {[%clk 0:02:17]} 21. Na4 {[%clk 0:01:23]}  Bxh2 {[%clk 0:02:15]} 22. Nc5 {[%clk 0:01:22]}  Bg4 {[%clk 0:02:12]} 23. Rde1 {[%clk 0:01:19]}  Rbe8 {[%clk 0:02:09]} 24. Re4 {[%clk 0:01:05]}  Bc8 {[%clk 0:02:02]} 25. Ra4 {[%clk 0:00:54]}  Bd6 {[%clk 0:01:19]} 26. Ne4 {[%clk 0:00:54]}  Be5 {[%clk 0:01:20]} 27. Rxa7 {[%clk 0:00:53]}  f5 {[%clk 0:01:20]} 28. Ng5 {[%clk 0:00:46]}  Kg7 {[%clk 0:01:15]} 29. a4 {[%clk 0:00:44]}  Re7 {[%clk 0:01:13]} 30. Nf3 {[%clk 0:00:40]}  Bd6 {[%clk 0:01:13]} 31. a5 {[%clk 0:00:33]}  Bd7 {[%clk 0:01:02]} 32. a6 {[%clk 0:00:32]}  h5 {[%clk 0:00:51]} 33. b3 {[%clk 0:00:27]}  Kf6 {[%clk 0:00:47]} 34. Kb2 {[%clk 0:00:25]}  Rc8 {[%clk 0:00:45]} 35. Rb7 {[%clk 0:00:23]}  Ra8 {[%clk 0:00:45]} 36. a7 {[%clk 0:00:18]}  Bc5 {[%clk 0:00:42]} 37. Ra1 {[%clk 0:00:17]}  Bb6 {[%clk 0:00:39]} 38. Nd2 {[%clk 0:00:13]}  Be6 {[%clk 0:00:17]} 39. Bc4 {[%clk 0:00:10]}  Bd5 {[%clk 0:00:18]} 40. Bxd5 {[%clk 0:00:09]}  cxd5 {[%clk 0:00:18]} 41. b4 {[%clk 0:00:06]}  Kg5 {[%clk 0:00:14]} 42. Nb3 {[%clk 0:00:05]}  Re4 {[%clk 0:00:13]} 43. c3 {[%clk 0:00:03]}  Re2+ {[%clk 0:00:13]} 44. Kb1 {[%clk 0:00:03]}  Rxg2 {[%clk 0:00:14]} 45. Nc1 {[%clk 0:00:03]}  h4 {[%clk 0:00:14]} 46. b5 {[%clk 0:00:03]}  h3 {[%clk 0:00:14]} 47. Ra2 {[%clk 0:00:02]}  Rxa2 {[%clk 0:00:14]} 48. Kxa2 {[%clk 0:00:02]}  h2 {[%clk 0:00:13]} 49. Nd3 {[%clk 0:00:02]}  Rxa7+ {[%clk 0:00:14]} 0-1


[Site "https://www.chess.com"]

[Event "Titled Tuesday Blitz November 08 Early 2022"]
[White "Janaszak, Dawid"]
[Black "Cramling Bellon, Anna"]
[WhiteFideId "1119206"]
[BlackFideId "32009232"]
[WhiteElo "2226"]
[BlackElo "1972"]
[Result "1-0"]
[Round "01"]
[TimeControl "180+1"]
[Date "2022.11.09"]
[WhiteClock "0:00:39"]
[BlackClock "0:00:06"]

1. e4 {[%clk 0:02:59]}  c5 {[%clk 0:02:59]} 2. Nc3 {[%clk 0:02:59]}  Nc6 {[%clk 0:02:58]} 3. Bb5 {[%clk 0:02:58]}  Nd4 {[%clk 0:02:56]} 4. Nf3 {[%clk 0:02:58]}  a6 {[%clk 0:02:51]} 5. Bd3 {[%clk 0:02:57]}  g6 {[%clk 0:02:48]} 6. b4 {[%clk 0:02:53]}  Nxf3+ {[%clk 0:02:35]} 7. Qxf3 {[%clk 0:02:54]}  cxb4 {[%clk 0:02:34]} 8. Nd5 {[%clk 0:02:54]}  Bg7 {[%clk 0:02:32]} 9. Rb1 {[%clk 0:02:53]}  a5 {[%clk 0:02:28]} 10. a3 {[%clk 0:02:49]}  e6 {[%clk 0:02:22]} 11. Ne3 {[%clk 0:02:47]}  Ne7 {[%clk 0:02:11]} 12. axb4 {[%clk 0:02:44]}  axb4 {[%clk 0:02:10]} 13. Rxb4 {[%clk 0:02:41]}  Ra1 {[%clk 0:02:08]} 14. O-O {[%clk 0:02:38]}  Nc6 {[%clk 0:02:08]} 15. Bb2 {[%clk 0:02:17]}  Rxf1+ {[%clk 0:01:32]} 16. Bxf1 {[%clk 0:02:18]}  Bxb2 {[%clk 0:01:25]} 17. Rxb2 {[%clk 0:02:19]}  O-O {[%clk 0:01:24]} 18. c3 {[%clk 0:02:11]}  Ne5 {[%clk 0:01:17]} 19. Qg3 {[%clk 0:02:09]}  d6 {[%clk 0:01:08]} 20. d4 {[%clk 0:02:09]}  Nc6 {[%clk 0:01:07]} 21. h4 {[%clk 0:02:05]}  h5 {[%clk 0:01:05]} 22. Rd2 {[%clk 0:01:51]}  Qe7 {[%clk 0:01:01]} 23. d5 {[%clk 0:01:49]}  Ne5 {[%clk 0:00:58]} 24. f4 {[%clk 0:01:44]}  Ng4 {[%clk 0:00:57]} 25. dxe6 {[%clk 0:01:33]}  Qxe6 {[%clk 0:00:45]} 26. Nxg4 {[%clk 0:01:28]}  hxg4 {[%clk 0:00:41]} 27. Qd3 {[%clk 0:01:25]}  b5 {[%clk 0:00:23]} 28. Qd4 {[%clk 0:01:09]}  Bb7 {[%clk 0:00:21]} 29. e5 {[%clk 0:00:59]}  dxe5 {[%clk 0:00:19]} 30. fxe5 {[%clk 0:00:58]}  Qc6 {[%clk 0:00:18]} 31. Rb2 {[%clk 0:00:47]}  Qc7 {[%clk 0:00:05]} 32. Rxb5 {[%clk 0:00:44]}  Rd8 {[%clk 0:00:05]} 33. Rxb7 {[%clk 0:00:39]}  Qc8 {[%clk 0:00:06]} 34. Qb4 {[%clk 0:00:39]} 1-0


[Site "https://www.chess.com"]

[Event "Titled Tuesday Blitz November 08 Early 2022"]
[White "Jean Louis, Marckens"]
[Black "Galperin, Platon"]
[WhiteFideId "11900270"]
[BlackFideId "14165414"]
[WhiteElo "2030"]
[BlackElo "2435"]
[Result "0-1"]
[Round "01"]
[TimeControl "180+1"]
[Date "2022.11.09"]
[WhiteClock "0:00:32"]
[BlackClock "0:02:00"]

1. d4 {[%clk 0:02:57]}  Nf6 {[%clk 0:02:58]} 2. Nf3 {[%clk 0:02:53]}  c5 {[%clk 0:02:59]} 3. g3 {[%clk 0:02:32]}  cxd4 {[%clk 0:02:56]} 4. Nxd4 {[%clk 0:02:32]}  d5 {[%clk 0:02:53]} 5. Bg2 {[%clk 0:02:33]}  e5 {[%clk 0:02:54]} 6. Nb3 {[%clk 0:02:32]}  Be6 {[%clk 0:02:52]} 7. O-O {[%clk 0:02:33]}  Be7 {[%clk 0:02:46]} 8. c4 {[%clk 0:02:32]}  Nc6 {[%clk 0:02:43]} 9. cxd5 {[%clk 0:02:23]}  Nxd5 {[%clk 0:02:43]} 10. a3 {[%clk 0:02:22]}  O-O {[%clk 0:02:42]} 11. N1d2 {[%clk 0:02:04]}  Rc8 {[%clk 0:02:40]} 12. h4 {[%clk 0:01:59]}  Nf6 {[%clk 0:02:37]} 13. Rb1 {[%clk 0:01:31]}  Qb6 {[%clk 0:02:30]} 14. Na1 {[%clk 0:01:29]}  Ba2 {[%clk 0:02:28]} 15. Nc2 {[%clk 0:01:13]}  Bxb1 {[%clk 0:02:24]} 16. Nxb1 {[%clk 0:01:14]}  Rfd8 {[%clk 0:02:24]} 17. Qe1 {[%clk 0:01:14]}  Qb3 {[%clk 0:02:22]} 18. Ne3 {[%clk 0:01:13]}  Nd4 {[%clk 0:02:21]} 19. Nc3 {[%clk 0:01:12]}  b5 {[%clk 0:02:16]} 20. Ne4 {[%clk 0:01:06]}  Nxe4 {[%clk 0:02:15]} 21. Bxe4 {[%clk 0:01:05]}  Rxc1 {[%clk 0:02:15]} 22. Qa5 {[%clk 0:00:52]}  Nxe2+ {[%clk 0:02:11]} 23. Kg2 {[%clk 0:00:52]}  Rxf1 {[%clk 0:02:12]} 24. Kxf1 {[%clk 0:00:51]}  Nd4 {[%clk 0:02:04]} 25. Qxa7 {[%clk 0:00:45]}  Qe6 {[%clk 0:02:04]} 26. Kg2 {[%clk 0:00:41]}  g6 {[%clk 0:02:02]} 27. Nd5 {[%clk 0:00:40]}  Rxd5 {[%clk 0:02:01]} 28. Bxd5 {[%clk 0:00:32]}  Qxd5+ {[%clk 0:02:02]} 29. Kh3 {[%clk 0:00:32]}  Qh1+ {[%clk 0:01:59]} 30. Kg4 {[%clk 0:00:32]}  h5# {[%clk 0:02:00]} 0-1


[Site "https://www.chess.com"]

[Event "Titled Tuesday Blitz November 08 Early 2022"]
[White "Jobava, Baadur"]
[Black "Raahul V S"]
[WhiteFideId "13601520"]
[BlackFideId "25035525"]
[WhiteElo "2582"]
[BlackElo "2233"]
[Result "0-1"]
[Round "01"]
[TimeControl "180+1"]
[Date "2022.11.08"]
[WhiteClock "0:00:05"]
[BlackClock "0:00:07"]

1. b3 {[%clk 0:02:59]}  e5 {[%clk 0:02:58]} 2. Bb2 {[%clk 0:02:59]}  Nc6 {[%clk 0:02:58]} 3. Nf3 {[%clk 0:03:00]}  e4 {[%clk 0:02:57]} 4. Nd4 {[%clk 0:02:59]}  Nxd4 {[%clk 0:02:58]} 5. Bxd4 {[%clk 0:03:00]}  d5 {[%clk 0:02:58]} 6. e3 {[%clk 0:02:58]}  Nf6 {[%clk 0:02:48]} 7. c4 {[%clk 0:02:42]}  c5 {[%clk 0:02:47]} 8. Bxf6 {[%clk 0:02:42]}  Qxf6 {[%clk 0:02:46]} 9. Nc3 {[%clk 0:02:43]}  dxc4 {[%clk 0:02:29]} 10. Bxc4 {[%clk 0:02:44]}  Qg6 {[%clk 0:02:25]} 11. Bd5 {[%clk 0:02:35]}  f5 {[%clk 0:02:17]} 12. O-O {[%clk 0:02:28]}  Bd6 {[%clk 0:02:16]} 13. f3 {[%clk 0:02:22]}  exf3 {[%clk 0:02:13]} 14. Qxf3 {[%clk 0:02:21]}  Rb8 {[%clk 0:02:04]} 15. Nb5 {[%clk 0:02:14]}  a6 {[%clk 0:01:51]} 16. Nxd6+ {[%clk 0:02:13]}  Qxd6 {[%clk 0:01:52]} 17. d4 {[%clk 0:02:10]}  cxd4 {[%clk 0:01:30]} 18. exd4 {[%clk 0:02:09]}  Kd8 {[%clk 0:01:30]} 19. Rfe1 {[%clk 0:01:55]}  Re8 {[%clk 0:01:26]} 20. Rxe8+ {[%clk 0:01:54]}  Kxe8 {[%clk 0:01:27]} 21. Re1+ {[%clk 0:01:53]}  Kd8 {[%clk 0:01:05]} 22. Kh1 {[%clk 0:01:46]}  b5 {[%clk 0:00:54]} 23. h3 {[%clk 0:01:24]}  Bd7 {[%clk 0:00:53]} 24. Re5 {[%clk 0:01:11]}  Rb6 {[%clk 0:00:39]} 25. Qe3 {[%clk 0:01:05]}  Kc7 {[%clk 0:00:36]} 26. Bf3 {[%clk 0:01:05]}  Qh6 {[%clk 0:00:28]} 27. Rc5+ {[%clk 0:01:02]}  Kd8 {[%clk 0:00:22]} 28. Qe5 {[%clk 0:01:00]}  Re6 {[%clk 0:00:20]} 29. Qb8+ {[%clk 0:00:58]}  Ke7 {[%clk 0:00:20]} 30. Kh2 {[%clk 0:00:44]}  Re1 {[%clk 0:00:16]} 31. Qg3 {[%clk 0:00:32]}  Qd6 {[%clk 0:00:14]} 32. Re5+ {[%clk 0:00:31]}  Rxe5 {[%clk 0:00:12]} 33. Qxg7+ {[%clk 0:00:29]}  Ke6 {[%clk 0:00:12]} 34. Qg8+ {[%clk 0:00:26]}  Kf6 {[%clk 0:00:12]} 35. Qh8+ {[%clk 0:00:24]}  Ke6 {[%clk 0:00:12]} 36. Qg8+ {[%clk 0:00:16]}  Kf6 {[%clk 0:00:12]} 37. dxe5+ {[%clk 0:00:15]}  Qxe5+ {[%clk 0:00:12]} 38. Qg3 {[%clk 0:00:15]}  a5 {[%clk 0:00:11]} 39. h4 {[%clk 0:00:10]}  b4 {[%clk 0:00:11]} 40. Bd1 {[%clk 0:00:05]}  h6 {[%clk 0:00:10]} 41. Bc2 {[%clk 0:00:04]}  Qxg3+ {[%clk 0:00:09]} 42. Kxg3 {[%clk 0:00:05]}  Ke5 {[%clk 0:00:10]} 43. Kf2 {[%clk 0:00:05]}  Bc6 {[%clk 0:00:09]} 44. g3 {[%clk 0:00:04]}  Be4 {[%clk 0:00:08]} 45. Bd1 {[%clk 0:00:03]}  Kd4 {[%clk 0:00:08]} 46. g4 {[%clk 0:00:03]}  fxg4 {[%clk 0:00:08]} 47. Bxg4 {[%clk 0:00:04]}  Kc3 {[%clk 0:00:08]} 48. Ke3 {[%clk 0:00:05]}  Bb1 {[%clk 0:00:07]} 49. Bd7 {[%clk 0:00:03]}  Bxa2 {[%clk 0:00:07]} 50. Kf4 {[%clk 0:00:03]}  Bxb3 {[%clk 0:00:07]} 51. Kf5 {[%clk 0:00:04]}  Bd1 {[%clk 0:00:06]} 52. Kg6 {[%clk 0:00:04]}  h5 {[%clk 0:00:07]} 53. Kg5 {[%clk 0:00:04]}  b3 {[%clk 0:00:07]} 54. Ba4 {[%clk 0:00:05]}  Kb4 {[%clk 0:00:06]} 55. Bc6 {[%clk 0:00:05]}  b2 {[%clk 0:00:06]} 56. Be4 {[%clk 0:00:06]}  Kc3 {[%clk 0:00:06]} 57. Bb1 {[%clk 0:00:06]}  a4 {[%clk 0:00:07]} 58. Ba2 {[%clk 0:00:06]}  a3 {[%clk 0:00:07]} 59. Kf4 {[%clk 0:00:05]}  Kc2 {[%clk 0:00:06]} 60. Kg5 {[%clk 0:00:05]}  b1=Q {[%clk 0:00:07]} 0-1


[Site "https://www.chess.com"]

[Event "Titled Tuesday Blitz November 08 Early 2022"]
[White "Jodorcovsky Werjivker, Paulo"]
[Black "Shipov, Sergei"]
[WhiteFideId "3700305"]
[BlackFideId "4113624"]
[WhiteElo "2120"]
[BlackElo "2788"]
[Result "0-1"]
[Round "01"]
[TimeControl "180+1"]
[Date "2022.11.09"]
[WhiteClock "0:00:44"]
[BlackClock "0:00:15"]

1. e4 {[%clk 0:02:58]}  e6 {[%clk 0:02:56]} 2. d4 {[%clk 0:02:58]}  d5 {[%clk 0:02:54]} 3. Nc3 {[%clk 0:02:59]}  Bb4 {[%clk 0:02:53]} 4. a3 {[%clk 0:02:59]}  Bxc3+ {[%clk 0:02:53]} 5. bxc3 {[%clk 0:03:00]}  dxe4 {[%clk 0:02:53]} 6. Qg4 {[%clk 0:03:00]}  Nf6 {[%clk 0:02:53]} 7. Qxg7 {[%clk 0:03:01]}  Rg8 {[%clk 0:02:54]} 8. Qh6 {[%clk 0:03:02]}  Bd7 {[%clk 0:02:54]} 9. Ne2 {[%clk 0:02:59]}  c5 {[%clk 0:02:54]} 10. Qd2 {[%clk 0:02:54]}  Ba4 {[%clk 0:02:49]} 11. Ng3 {[%clk 0:02:43]}  Nc6 {[%clk 0:02:37]} 12. Rb1 {[%clk 0:02:38]}  Qc7 {[%clk 0:02:30]} 13. Bb2 {[%clk 0:02:28]}  O-O-O {[%clk 0:02:29]} 14. Ba1 {[%clk 0:02:20]}  h5 {[%clk 0:02:26]} 15. h4 {[%clk 0:02:03]}  Rg4 {[%clk 0:01:35]} 16. Be2 {[%clk 0:02:00]}  Rxg3 {[%clk 0:01:35]} 17. fxg3 {[%clk 0:01:58]}  Qxg3+ {[%clk 0:01:35]} 18. Kf1 {[%clk 0:01:56]}  Rg8 {[%clk 0:01:33]} 19. Bc4 {[%clk 0:01:30]}  e3 {[%clk 0:01:24]} 20. Qe2 {[%clk 0:01:26]}  Ne4 {[%clk 0:01:24]} 21. Rh3 {[%clk 0:01:26]}  Nd2+ {[%clk 0:01:19]} 22. Qxd2 {[%clk 0:01:23]}  exd2 {[%clk 0:00:53]} 23. Rxg3 {[%clk 0:01:22]}  Rxg3 {[%clk 0:00:53]} 24. Rd1 {[%clk 0:01:19]}  Bxc2 {[%clk 0:00:31]} 25. Rxd2 {[%clk 0:01:18]}  Be4 {[%clk 0:00:31]} 26. Re2 {[%clk 0:00:57]}  Rg4 {[%clk 0:00:15]} 27. Bb2 {[%clk 0:00:53]}  Na5 {[%clk 0:00:15]} 28. Ba2 {[%clk 0:00:46]}  Bd3 {[%clk 0:00:15]} 29. dxc5 {[%clk 0:00:44]}  Bxe2+ {[%clk 0:00:14]} 30. Kxe2 {[%clk 0:00:44]}  Rxg2+ {[%clk 0:00:15]} 0-1


[Site "https://www.chess.com"]

[Event "Titled Tuesday Blitz November 08 Early 2022"]
[White "Johnson, Ben"]
[Black "Skatchkov, Valery"]
[WhiteFideId "2010917"]
[BlackFideId "24195812"]
[WhiteElo "2132"]
[BlackElo "2147"]
[Result "0-1"]
[Round "01"]
[TimeControl "180+1"]
[Date "2022.11.09"]
[WhiteClock "0:00:06"]
[BlackClock "0:02:48"]

1. Nf3 {[%clk 0:02:59]}  d5 {[%clk 0:02:58]} 2. e3 {[%clk 0:02:58]}  Nd7 {[%clk 0:02:58]} 3. c4 {[%clk 0:02:57]}  c6 {[%clk 0:02:58]} 4. Nc3 {[%clk 0:02:54]}  Ngf6 {[%clk 0:02:58]} 5. b3 {[%clk 0:02:41]}  e5 {[%clk 0:02:57]} 6. cxd5 {[%clk 0:02:41]}  cxd5 {[%clk 0:02:57]} 7. d4 {[%clk 0:02:36]}  e4 {[%clk 0:02:57]} 8. Nd2 {[%clk 0:02:32]}  Bd6 {[%clk 0:02:56]} 9. Nb5 {[%clk 0:02:19]}  Be7 {[%clk 0:02:56]} 10. Qc2 {[%clk 0:02:13]}  O-O {[%clk 0:02:57]} 11. Ba3 {[%clk 0:01:51]}  a6 {[%clk 0:02:57]} 12. Bxe7 {[%clk 0:01:10]}  Qxe7 {[%clk 0:02:58]} 13. Nc7 {[%clk 0:01:11]}  Rb8 {[%clk 0:02:57]} 14. Be2 {[%clk 0:01:02]}  b5 {[%clk 0:02:58]} 15. Rc1 {[%clk 0:00:58]}  Bb7 {[%clk 0:02:58]} 16. a4 {[%clk 0:00:39]}  Rfc8 {[%clk 0:02:59]} 17. axb5 {[%clk 0:00:38]}  axb5 {[%clk 0:03:00]} 18. Bxb5 {[%clk 0:00:29]}  Ne8 {[%clk 0:02:59]} 19. Nxe8 {[%clk 0:00:20]}  Rxc2 {[%clk 0:02:59]} 20. Rxc2 {[%clk 0:00:21]}  Qxe8 {[%clk 0:02:51]} 21. Rc7 {[%clk 0:00:21]}  Bc8 {[%clk 0:02:52]} 22. Ba4 {[%clk 0:00:20]}  Qd8 {[%clk 0:02:51]} 23. Ra7 {[%clk 0:00:19]}  Qb6 {[%clk 0:02:48]} 24. Rxd7 {[%clk 0:00:18]}  Bxd7 {[%clk 0:02:48]} 25. Bxd7 {[%clk 0:00:19]}  Qb4 {[%clk 0:02:44]} 26. Ba4 {[%clk 0:00:18]}  Rc8 {[%clk 0:02:44]} 27. Ke2 {[%clk 0:00:12]}  Rc2 {[%clk 0:02:44]} 28. Rd1 {[%clk 0:00:12]}  f5 {[%clk 0:02:45]} 29. g3 {[%clk 0:00:12]}  Kf7 {[%clk 0:02:45]} 30. h4 {[%clk 0:00:12]}  g6 {[%clk 0:02:45]} 31. Ke1 {[%clk 0:00:08]}  h6 {[%clk 0:02:44]} 32. Ke2 {[%clk 0:00:08]}  g5 {[%clk 0:02:45]} 33. hxg5 {[%clk 0:00:09]}  hxg5 {[%clk 0:02:45]} 34. Ke1 {[%clk 0:00:08]}  Kf6 {[%clk 0:02:45]} 35. Ke2 {[%clk 0:00:09]}  Kg6 {[%clk 0:02:45]} 36. Ke1 {[%clk 0:00:09]}  Kf6 {[%clk 0:02:45]} 37. Ke2 {[%clk 0:00:09]}  Qc3 {[%clk 0:02:45]} 38. Ke1 {[%clk 0:00:09]}  f4 {[%clk 0:02:45]} 39. gxf4 {[%clk 0:00:08]}  gxf4 {[%clk 0:02:45]} 40. exf4 {[%clk 0:00:06]}  e3 {[%clk 0:02:46]} 41. fxe3 {[%clk 0:00:06]}  Qxe3+ {[%clk 0:02:47]} 42. Kf1 {[%clk 0:00:06]}  Rxd2 {[%clk 0:02:48]} 0-1


[Site "https://www.chess.com"]

[Event "Titled Tuesday Blitz November 08 Early 2022"]
[White "Kamsky, Gata"]
[Black "Mouhamad, Joachim"]
[WhiteFideId "2000024"]
[BlackFideId "656410"]
[WhiteElo "2666"]
[BlackElo "2164"]
[Result "1-0"]
[Round "01"]
[TimeControl "180+1"]
[Date "2022.11.09"]
[WhiteClock "0:01:18"]
[BlackClock "0:00:01"]

1. e4 {[%clk 0:03:00]}  c5 {[%clk 0:02:52]} 2. Nf3 {[%clk 0:02:59]}  Nc6 {[%clk 0:02:50]} 3. d4 {[%clk 0:02:58]}  cxd4 {[%clk 0:02:51]} 4. Nxd4 {[%clk 0:02:59]}  g6 {[%clk 0:02:50]} 5. c4 {[%clk 0:02:58]}  Nf6 {[%clk 0:02:49]} 6. Nc3 {[%clk 0:02:57]}  d6 {[%clk 0:02:49]} 7. Be2 {[%clk 0:02:57]}  Nxd4 {[%clk 0:02:48]} 8. Qxd4 {[%clk 0:02:56]}  Bg7 {[%clk 0:02:49]} 9. Bd2 {[%clk 0:02:56]}  O-O {[%clk 0:02:49]} 10. Qe3 {[%clk 0:02:56]}  a5 {[%clk 0:02:45]} 11. O-O {[%clk 0:02:55]}  a4 {[%clk 0:02:45]} 12. Rfc1 {[%clk 0:02:42]}  Be6 {[%clk 0:02:44]} 13. Rab1 {[%clk 0:02:41]}  Ng4 {[%clk 0:02:37]} 14. Bxg4 {[%clk 0:02:33]}  Bxg4 {[%clk 0:02:37]} 15. Nd5 {[%clk 0:02:32]}  Be6 {[%clk 0:02:21]} 16. Bc3 {[%clk 0:02:26]}  Bxc3 {[%clk 0:02:17]} 17. Rxc3 {[%clk 0:02:25]}  Re8 {[%clk 0:01:59]} 18. Rd1 {[%clk 0:02:16]}  Qa5 {[%clk 0:01:56]} 19. h4 {[%clk 0:02:13]}  Rac8 {[%clk 0:01:22]} 20. h5 {[%clk 0:02:12]}  Bxd5 {[%clk 0:01:18]} 21. Rxd5 {[%clk 0:02:10]}  Rc5 {[%clk 0:01:11]} 22. h6 {[%clk 0:02:08]}  Rxd5 {[%clk 0:01:04]} 23. cxd5 {[%clk 0:02:01]}  Qb4 {[%clk 0:01:00]} 24. Rc2 {[%clk 0:01:59]}  a3 {[%clk 0:00:39]} 25. bxa3 {[%clk 0:01:49]}  Qb1+ {[%clk 0:00:39]} 26. Rc1 {[%clk 0:01:45]}  Qb2 {[%clk 0:00:38]} 27. g3 {[%clk 0:01:40]}  Qe5 {[%clk 0:00:32]} 28. Rc7 {[%clk 0:01:33]}  e6 {[%clk 0:00:26]} 29. dxe6 {[%clk 0:01:31]}  Qxe6 {[%clk 0:00:24]} 30. Rxb7 {[%clk 0:01:29]}  Re7 {[%clk 0:00:07]} 31. Qd4 {[%clk 0:01:27]}  f6 {[%clk 0:00:04]} 32. Rxe7 {[%clk 0:01:25]}  Qxe7 {[%clk 0:00:05]} 33. Qc4+ {[%clk 0:01:25]}  Kf8 {[%clk 0:00:04]} 34. Qc8+ {[%clk 0:01:23]}  Kf7 {[%clk 0:00:04]} 35. Qh8 {[%clk 0:01:19]}  Qxe4 {[%clk 0:00:03]} 36. Qxh7+ {[%clk 0:01:20]}  Ke6 {[%clk 0:00:03]} 37. Qg8+ {[%clk 0:01:19]}  Kf5 {[%clk 0:00:04]} 38. Qc8+ {[%clk 0:01:19]}  Kg5 {[%clk 0:00:04]} 39. h7 {[%clk 0:01:18]}  Qe1+ {[%clk 0:00:03]} 40. Kg2 {[%clk 0:01:18]}  Qe4+ {[%clk 0:00:04]} 41. Kh2 {[%clk 0:01:19]}  Qf3 {[%clk 0:00:01]} 42. Qc1+ {[%clk 0:01:18]}  Kf5 {[%clk 0:00:01]} 43. Qf4+ {[%clk 0:01:18]}  Qxf4 {[%clk 0:00:01]} 44. gxf4 {[%clk 0:01:18]} 1-0


[Site "https://www.chess.com"]

[Event "Titled Tuesday Blitz November 08 Early 2022"]
[White "Kaplan, Avi Harrison"]
[Black "Peyrer, Konstantin"]
[WhiteFideId "30934559"]
[BlackFideId "1640879"]
[WhiteElo "1983"]
[BlackElo "2415"]
[Result "0-1"]
[Round "01"]
[TimeControl "180+1"]
[Date "2022.11.09"]
[WhiteClock "0:01:46"]
[BlackClock "0:01:26"]

1. d4 {[%clk 0:02:59]}  Nf6 {[%clk 0:02:49]} 2. c4 {[%clk 0:02:58]}  g6 {[%clk 0:02:46]} 3. Nc3 {[%clk 0:02:58]}  Bg7 {[%clk 0:02:46]} 4. e4 {[%clk 0:02:56]}  d6 {[%clk 0:02:47]} 5. Nge2 {[%clk 0:02:56]}  O-O {[%clk 0:02:45]} 6. Ng3 {[%clk 0:02:54]}  e5 {[%clk 0:02:46]} 7. d5 {[%clk 0:02:52]}  a5 {[%clk 0:02:42]} 8. h4 {[%clk 0:02:49]}  h5 {[%clk 0:02:34]} 9. Bg5 {[%clk 0:02:48]}  Qd7 {[%clk 0:02:31]} 10. Be2 {[%clk 0:02:46]}  Na6 {[%clk 0:02:26]} 11. Qd2 {[%clk 0:02:46]}  Nc5 {[%clk 0:02:25]} 12. Bh6 {[%clk 0:02:41]}  Qd8 {[%clk 0:02:06]} 13. O-O-O {[%clk 0:02:35]}  Ng4 {[%clk 0:02:00]} 14. Bxg7 {[%clk 0:02:32]}  Kxg7 {[%clk 0:02:00]} 15. Bxg4 {[%clk 0:02:17]}  Bxg4 {[%clk 0:02:01]} 16. f3 {[%clk 0:02:18]}  Bd7 {[%clk 0:02:00]} 17. Nf1 {[%clk 0:02:18]}  b5 {[%clk 0:01:55]} 18. cxb5 {[%clk 0:02:13]}  Rb8 {[%clk 0:01:55]} 19. a4 {[%clk 0:02:12]}  Nb3+ {[%clk 0:01:53]} 20. Kc2 {[%clk 0:02:03]}  Nxd2 {[%clk 0:01:54]} 21. Rxd2 {[%clk 0:02:03]}  f5 {[%clk 0:01:53]} 22. Ne3 {[%clk 0:02:01]}  fxe4 {[%clk 0:01:50]} 23. fxe4 {[%clk 0:02:02]}  Rf4 {[%clk 0:01:50]} 24. Kd3 {[%clk 0:01:59]}  Rxh4 {[%clk 0:01:48]} 25. Rf1 {[%clk 0:01:58]}  Qg5 {[%clk 0:01:46]} 26. Rdf2 {[%clk 0:01:57]}  Rf4 {[%clk 0:01:43]} 27. Ne2 {[%clk 0:01:56]}  Rxf2 {[%clk 0:01:43]} 28. Rxf2 {[%clk 0:01:57]}  Rf8 {[%clk 0:01:36]} 29. Rxf8 {[%clk 0:01:56]}  Kxf8 {[%clk 0:01:37]} 30. Nd1 {[%clk 0:01:49]}  Bg4 {[%clk 0:01:34]} 31. Ne3 {[%clk 0:01:49]}  Bxe2+ {[%clk 0:01:33]} 32. Kxe2 {[%clk 0:01:50]}  h4 {[%clk 0:01:33]} 33. b4 {[%clk 0:01:49]}  axb4 {[%clk 0:01:25]} 34. a5 {[%clk 0:01:49]}  b3 {[%clk 0:01:26]} 35. a6 {[%clk 0:01:49]}  b2 {[%clk 0:01:26]} 36. a7 {[%clk 0:01:46]}  Qd8 {[%clk 0:01:26]} 0-1


[Site "https://www.chess.com"]

[Event "Titled Tuesday Blitz November 08 Early 2022"]
[White "Kohler, Aran"]
[Black "Papasimakopoulos, Alexandros"]
[WhiteFideId "1002856"]
[BlackFideId "4244125"]
[WhiteElo "2367"]
[BlackElo "2365"]
[Result "0-1"]
[Round "01"]
[TimeControl "180+1"]
[Date "2022.11.09"]
[WhiteClock "0:00:48"]
[BlackClock "0:00:59"]

1. Nf3 {[%clk 0:02:56]}  d5 {[%clk 0:02:58]} 2. g3 {[%clk 0:02:56]}  c6 {[%clk 0:02:56]} 3. Bg2 {[%clk 0:02:57]}  Nf6 {[%clk 0:02:56]} 4. O-O {[%clk 0:02:56]}  Bg4 {[%clk 0:02:57]} 5. c4 {[%clk 0:02:56]}  e6 {[%clk 0:02:56]} 6. cxd5 {[%clk 0:02:56]}  exd5 {[%clk 0:02:56]} 7. h3 {[%clk 0:02:54]}  Bh5 {[%clk 0:02:54]} 8. g4 {[%clk 0:02:53]}  Bg6 {[%clk 0:02:51]} 9. d3 {[%clk 0:02:53]}  Nbd7 {[%clk 0:02:51]} 10. Nh4 {[%clk 0:02:40]}  Bc5 {[%clk 0:02:48]} 11. Nxg6 {[%clk 0:02:34]}  hxg6 {[%clk 0:02:47]} 12. d4 {[%clk 0:02:32]}  Bd6 {[%clk 0:02:46]} 13. e3 {[%clk 0:02:27]}  Qe7 {[%clk 0:02:37]} 14. f4 {[%clk 0:02:24]}  Ne4 {[%clk 0:02:31]} 15. Qe1 {[%clk 0:02:20]}  O-O-O {[%clk 0:02:26]} 16. Nc3 {[%clk 0:02:14]}  Nxc3 {[%clk 0:02:20]} 17. bxc3 {[%clk 0:02:07]}  g5 {[%clk 0:02:14]} 18. f5 {[%clk 0:01:58]}  Nf6 {[%clk 0:02:13]} 19. c4 {[%clk 0:01:55]}  Bb8 {[%clk 0:02:08]} 20. cxd5 {[%clk 0:01:50]}  Nxd5 {[%clk 0:02:03]} 21. e4 {[%clk 0:01:45]}  Nf4 {[%clk 0:02:03]} 22. Bxf4 {[%clk 0:01:44]}  Bxf4 {[%clk 0:01:58]} 23. Rd1 {[%clk 0:01:41]}  Rd7 {[%clk 0:01:46]} 24. Qc3 {[%clk 0:01:40]}  Rhd8 {[%clk 0:01:42]} 25. e5 {[%clk 0:01:39]}  Bxe5 {[%clk 0:01:32]} 26. Kh1 {[%clk 0:01:24]}  Bxd4 {[%clk 0:01:17]} 27. Qc4 {[%clk 0:01:17]}  Bb6 {[%clk 0:01:13]} 28. Rde1 {[%clk 0:01:15]}  Qd6 {[%clk 0:01:12]} 29. Re2 {[%clk 0:01:12]}  Bc7 {[%clk 0:01:12]} 30. Bf3 {[%clk 0:01:11]}  Qg3 {[%clk 0:01:06]} 31. Bg2 {[%clk 0:00:48]}  Qh2# {[%clk 0:00:59]} 0-1


[Site "https://www.chess.com"]